bitfinex-derivatives/quotes_ETHF0:USTF0_20260214
["timestamp","ask_amount","ask_price","bid_price","bid_amount"]
[1771091453623,2.00777352,2081.0,2080.2,1.92480603]
[1771091454321,1.25719226,2080.9,2079.9,1.92480603]
[1771091454528,2.00777352,2080.8,2079.9,1.92480603]
[1771091454724,2.00777352,2080.8,2079.9,1.92909657]
[1771091456325,2.00777352,2080.6,2079.9,0.00429054]
[1771091456519,2.01335398,2080.6,2079.9,0.00429054]
[1771091456719,2.01335398,2080.6,2079.9,1.92909657]
[1771091460229,0.00558046,2080.6,2079.9,1.92909657]
[1771091463927,2.01335398,2080.6,2079.9,1.92909657]
[1771091464926,2.01335398,2080.6,2080.1,1.92480603]
[1771091465132,0.00121864,2080.6,2080.1,1.92480603]
[1771091465433,2.00777352,2080.9,2080.1,1.92480603]
[1771091466228,2.01374643,2080.9,2080.1,1.92480603]
[1771091467432,0.00597291,2080.9,2080.1,1.92480603]
[1771091468534,2.01374643,2080.9,2080.1,1.92480603]
[1771091472840,0.00597291,2080.9,2080.3,2.05004558]
[1771091474244,0.00597291,2080.9,2079.9,0.00429054]
[1771091474245,1.87873398,2080.9,2080.5,2.05004558]
[1771091474639,1.87873398,2080.9,2080.5,1.55044558]
[1771091476944,0.00597291,2080.9,2080.5,1.55044558]
[1771091477545,1.87873398,2080.9,2080.5,1.55044558]
[1771091482845,1.87873398,2080.9,2080.4,0.24044]
[1771091483148,1.87873398,2080.9,2080.4,2.02138881]
[1771091486747,1.87873398,2080.9,2080.1,1.75483566]
[1771091487249,1.87873398,2080.9,2080.0,1.74580851]
[1771091489554,1.87873398,2080.9,2079.9,0.24478054]
[1771091490151,3.13684258,2080.9,2079.9,0.00429054]
[1771091490450,1.87276107,2080.7,2079.9,0.00429054]
[1771091496056,1.87276107,2080.5,2079.3,1.70965724]
[1771091496452,1.87276107,2080.5,2079.2,1.71324699]
[1771091496656,1.87276107,2080.2,2079.2,1.71324699]
[1771091496856,1.87276107,2080.2,2079.0,1.7091752]
[1771091497053,1.87276107,2080.0,2079.0,1.71279769]
[1771091498354,1.87276107,2080.0,2079.0,0.00362249]
[1771091499253,1.87276107,2079.9,2079.0,0.00362249]
[1771091506468,1.87440263,2079.7,2079.0,1.66343238]
[1771091506871,1.87440263,2079.7,2079.0,1.16373238]
[1771091507774,1.87440263,2079.7,2079.0,1.16695919]
[1771091508174,1.87440263,2079.7,2079.0,0.00322681]
[1771091510573,1.87440263,2079.7,2079.0,1.14703038]
[1771091511276,1.87440263,2079.7,2079.0,0.00322681]
[1771091513480,1.87440263,2079.7,2079.0,1.16357132]
[1771091523087,1.87440263,2079.9,2079.0,1.16357132]
[1771091523275,1.87440263,2079.9,2079.1,1.14991322]
[1771091524092,1.87440263,2080.3,2079.1,1.14991322]
[1771091524385,1.87440263,2080.3,2079.4,1.14682841]
[1771091533492,1.87440263,2080.3,2079.6,1.15221233]
[1771091534994,1.87440263,2080.3,2079.8,1.14859876]
[1771091535390,1.87440263,2080.3,2079.8,0.86029876]
[1771091535692,1.81308675,2080.8,2080.1,3.06786793]
[1771091535994,1.81308675,2080.8,2079.9,1.25876099]
[1771091536188,1.81308675,2080.8,2080.0,1.80910694]
[1771091537289,1.81308675,2080.8,2080.2,1.80910694]
[1771091538588,1.81308675,2080.8,2080.2,1.30970694]
[1771091540096,1.81308675,2080.8,2080.4,1.64757247]
[1771091543392,1.81308675,2080.8,2080.3,2.90635008]
[1771091543595,1.81308675,2080.8,2080.2,1.64758909]
[1771091549299,1.81308675,2080.8,2080.3,1.25876099]
[1771091549500,1.81308675,2080.8,2080.4,1.66253941]
[1771091549800,1.81308675,2080.8,2080.4,1.16293941]
[1771091552805,1.81308675,2080.8,2080.4,0.66323941]
[1771091556111,1.81308675,2080.8,2080.1,1.92223999]
[1771091556303,1.81308675,2080.8,2080.2,0.663479]
[1771091556509,1.81308675,2080.8,2080.0,0.66352868]
[1771091567412,1.81308675,2080.8,2080.3,1.91486048]
[1771091569317,1.81308675,2080.8,2080.4,0.64366173]
[1771091569620,1.81308675,2080.8,2080.4,0.56196173]
[1771091569815,1.81308675,2080.8,2080.3,1.82095021]
[1771091570119,1.81308675,2080.8,2080.4,0.56218922]
[1771091570619,1.86471265,2080.9,2080.5,1.82128145]
[1771091570819,1.86471265,2080.9,2080.5,1.82450826]
[1771091571119,1.86471265,2080.9,2080.5,1.32450826]
[1771091575226,1.86471265,2080.9,2080.5,0.00322681]
[1771091578035,1.86471265,2080.9,2080.3,0.24045]
[1771091580741,1.85873974,2080.8,2079.9,0.59342966]
[1771091584644,1.85873974,2080.8,2080.0,1.84839806]
[1771091596657,1.85873974,2080.8,2080.0,0.58963707]
[1771091599665,1.85873974,2080.8,2079.8,0.83715377]
[1771091599864,1.85873974,2080.8,2079.8,0.24051]
[1771091601965,1.85873974,2080.8,2079.6,4.59097595]
[1771091602166,1.85873974,2080.8,2079.6,0.60197595]
[1771091603069,1.85873974,2080.8,2079.4,0.60131512]
[1771091603372,1.84130679,2080.6,2079.4,0.60131512]
[1771091615474,1.84130679,2080.6,2079.6,0.56898149]
[1771091617180,1.84130679,2080.6,2079.7,0.24052]
[1771091617376,1.84130679,2080.6,2079.8,0.55434744]
[1771091619676,1.84130679,2080.6,2079.7,0.24052]
[1771091620172,1.84130679,2080.6,2079.7,0.79107904]
[1771091620680,1.84130679,2080.6,2079.7,0.24052]
[1771091624586,1.84130679,2080.6,2079.5,0.55604843]
[1771091624886,1.84130679,2080.6,2079.3,10.60634671]
[1771091625082,1.84130679,2080.6,2079.3,0.56847291]
[1771091628390,1.77442006,2080.4,2079.3,0.56847291]
[1771091631188,1.77442006,2080.4,2079.3,10.60634671]
[1771091631394,1.77442006,2080.4,2079.4,0.55205514]
[1771091642804,1.77442006,2080.4,2079.5,0.24055]
[1771091643003,4.03492258,2080.9,2079.6,0.53954985]
[1771091643206,1.77442006,2080.8,2079.8,1.74595568]
[1771091646409,1.77442006,2080.8,2080.0,1.74595568]
[1771091650814,1.77442006,2080.8,2080.2,1.74595568]
[1771091651309,1.77442006,2080.8,2080.2,1.24655568]
[1771091652610,1.77442006,2080.8,2079.8,5.73495568]
[1771091653006,1.77442006,2080.8,2079.9,1.79405696]
[1771091656916,1.77442006,2080.8,2080.0,1.81661658]
[1771091661519,1.77442006,2080.8,2079.9,1.25854581]
[1771091661816,1.77442006,2080.8,2079.9,3.07358788]
[1771091662213,1.77442006,2080.8,2079.9,1.81504207]
[1771091663818,1.85793227,2080.7,2079.9,1.81504207]
[1771091666426,0.00597291,2080.9,2079.7,1.8213359]
[1771091666427,1.85793227,2080.5,2079.7,1.8213359]
[1771091669124,1.85793227,2080.5,2079.6,1.81820225]
[1771091671031,1.85793227,2080.5,2079.3,1.25854581]
[1771091671232,1.85793227,2080.5,2079.4,1.8289349]
[1771091677934,1.25854581,2080.4,2079.4,1.8289349]
[1771091678637,1.85793227,2080.3,2079.4,1.8289349]
[1771091679636,1.85793227,2080.1,2079.2,1.86811155]
[1771091686145,1.76955207,2079.9,2079.2,1.86811155]
[1771091688745,1.76955207,2079.9,2079.1,0.24059]
[1771091688944,1.76955207,2079.9,2079.1,2.11002744]
[1771091689346,1.76955207,2079.9,2079.1,0.24059]
[1771091689547,1.76955207,2079.7,2078.7,1.87038152]
[1771091691242,1.76955207,2079.7,2078.6,3.37597451]
[1771091691441,1.76955207,2079.7,2078.8,1.25854581]
[1771091691742,1.76955207,2080.1,2079.3,1.87686276]
[1771091692047,1.76955207,2080.1,2079.5,1.87686276]
[1771091692449,1.76955207,2080.1,2079.5,1.37686276]
[1771091693658,1.76955207,2080.1,2079.5,0.87756276]
[1771091694546,1.76955207,2080.1,2079.4,2.10817186]
[1771091694749,1.76955207,2080.1,2079.4,0.84962605]
[1771091698661,1.76955207,2080.6,2079.6,1.25854581]
[1771091698959,1.76955207,2080.6,2079.9,0.88103287]
[1771091699661,1.76955207,2080.6,2080.1,0.87104146]
[1771091700361,1.76955207,2080.6,2079.8,1.25854581]
[1771091700659,1.76955207,2080.6,2079.7,0.87119259]
[1771091701162,1.76955207,2080.6,2079.9,0.87199328]
[1771091701659,1.76955207,2080.2,2079.3,10.88221929]
[1771091701962,1.76955207,2080.2,2079.2,2.1028913]
[1771091702151,1.76955207,2080.2,2079.2,0.84434549]
[1771091702353,1.76955207,2080.0,2079.0,2.10303189]
[1771091702659,1.76955207,2080.0,2079.1,0.84448608]
[1771091703561,1.76955207,2080.0,2079.3,0.8498809]
[1771091704264,1.76955207,2080.0,2079.5,0.85002075]
[1771091707067,1.76955207,2080.0,2079.4,2.10087232]
[1771091714365,1.76955207,2080.0,2079.4,0.84232651]
[1771091716068,1.76955207,2080.0,2079.2,1.25854581]
[1771091716268,1.76955207,2080.0,2079.3,0.84641744]
[1771091717163,1.76955207,2080.0,2079.2,1.25854581]
[1771091717361,1.76955207,2080.0,2078.9,0.84681281]
[1771091725272,1.76955207,2080.0,2079.1,0.84060894]
[1771091731587,1.77955207,2080.0,2079.1,0.84060894]
[1771091734688,1.77955207,2080.0,2079.3,0.83784258]
[1771091740896,1.83157173,2080.2,2079.5,0.82971636]
[1771091741694,1.83157173,2080.2,2079.7,0.81563771]
[1771091742191,1.83157173,2080.2,2079.7,0.31563771]
[1771091743791,1.83157173,2080.2,2079.6,0.52798334]
[1771091744992,1.83157173,2080.2,2079.6,0.24053]
[1771091747192,1.83157173,2080.2,2079.7,0.28016782]
[1771091747402,1.83157173,2080.2,2079.6,0.24053]
[1771091748797,1.83157173,2080.2,2079.6,0.52857025]
[1771091751496,1.83157173,2080.2,2079.6,0.24053]
[1771091753708,1.83157173,2080.2,2079.6,0.53302626]
[1771091755309,1.83157173,2080.2,2079.7,0.29275497]
[1771091755805,1.83157173,2080.2,2079.8,0.02426031]
[1771091756216,1.83157173,2080.2,2079.6,0.24053]
[1771091761511,1.94418741,2080.7,2079.9,1.75176412]
[1771091761811,1.94418741,2080.7,2079.9,1.25176412]
[1771091778220,1.94418741,2080.7,2080.1,1.2818924]
[1771091781022,1.94418741,2080.7,2080.1,2.54015211]
[1771091781831,1.94418741,2080.7,2080.1,1.2818924]
[1771091782629,1.94418741,2080.7,2080.0,1.49874971]
[1771091783328,1.81488011,2080.8,2080.4,3.09394632]
[1771091783729,1.81488011,2080.8,2080.4,1.83568661]
[1771091784434,1.81488011,2080.8,2080.2,1.25825971]
[1771091784635,1.81488011,2080.8,2080.0,3.33443632]
[1771091785136,1.81488011,2080.8,2080.0,2.07617661]
[1771091785334,1.81488011,2080.8,2079.8,5.24825971]
[1771091785335,1.81488011,2080.6,2079.8,5.82568661]
[1771091785734,1.81488011,2080.6,2079.8,7.08394632]
[1771091786335,1.81488011,2080.6,2079.8,3.09394632]
[1771091788045,1.81488011,2080.6,2079.9,1.83568661]
[1771091788346,1.81488011,2080.6,2079.8,1.83568661]
[1771091788644,1.81488011,2080.4,2079.5,4.23054]
[1771091789035,1.81488011,2080.4,2079.5,6.06622661]
[1771091789648,1.81488011,2080.4,2079.5,2.07622661]
[1771091794350,1.81488011,2080.4,2079.4,1.83568661]
[1771091794749,1.81488011,2080.4,2079.5,1.83568661]
[1771091795953,1.81488011,2080.4,2079.6,1.25825971]
[1771091796153,1.81488011,2080.4,2079.9,1.83568661]
[1771091796453,1.81488011,2080.4,2079.9,1.33608661]
[1771091796646,1.81488011,2080.6,2080.1,1.83568661]
[1771091797146,1.81488011,2080.6,2080.1,1.33598661]
[1771091798553,1.81488011,2080.8,2080.3,1.83568661]
[1771091798853,1.81488011,2080.8,2080.1,1.83568661]
[1771091799354,1.81488011,2080.8,2079.9,1.83568661]
[1771091802553,0.00597291,2080.9,2079.8,0.2405]
[1771091802554,1.84556162,2080.4,2079.8,0.2405]
[1771091804755,1.84556162,2080.4,2079.7,1.83481267]
[1771091807155,1.84556162,2080.4,2079.5,1.88806788]
[1771091808348,1.84556162,2080.4,2080.0,1.25825971]
[1771091808554,1.84556162,2080.4,2080.0,1.88806788]
[1771091808854,1.84556162,2080.4,2079.9,1.88806788]
[1771091809255,1.84556162,2080.4,2079.7,1.88806788]
[1771091813163,1.84556162,2080.4,2079.8,3.14632759]
[1771091813463,1.84556162,2080.4,2079.9,1.88806788]
[1771091815761,1.84556162,2080.4,2079.9,1.38806788]
[1771091819067,1.84556162,2080.4,2079.8,3.11034215]
[1771091819266,1.84556162,2080.4,2079.9,1.85208244]
[1771091821067,1.84556162,2080.4,2079.7,1.86177676]
[1771091821459,1.89673229,2080.6,2079.9,1.86725022]
[1771091821660,1.89673229,2080.6,2080.0,1.25825971]
[1771091821862,1.89673229,2080.6,2079.9,1.86725022]
[1771091822262,1.89673229,2080.6,2080.0,2.11064224]
[1771091829669,1.89673229,2080.6,2080.0,1.61064224]
[1771091830074,1.89673229,2080.6,2080.0,1.85113224]
[1771091830574,1.89673229,2080.8,2080.1,1.25825971]
[1771091830776,1.89673229,2080.8,2080.1,2.88174496]
[1771091831576,1.89673229,2080.8,2080.2,1.62321803]
[1771091834374,1.89673229,2080.8,2080.4,1.62711441]
[1771091836677,2.00301091,2080.9,2080.4,1.62711441]
[1771091842080,2.00301091,2080.9,2080.5,1.25825971]
[1771091842279,0.00597291,2080.9,2080.6,1.65100704]
[1771091843981,2.00301091,2080.9,2080.6,1.65100704]
[1771091846685,2.00301091,2080.9,2080.6,1.15190704]
[1771091854386,2.00301091,2080.9,2080.4,0.24043]
[1771091854587,2.00301091,2080.9,2080.5,1.18399378]
[1771091856889,0.00597291,2080.9,2080.5,1.18399378]
[1771091862491,1.88946925,2080.9,2080.5,1.18399378]
[1771091865403,0.00597291,2080.9,2080.5,1.18399378]
[1771091867805,1.90298133,2080.9,2080.5,1.18399378]
[1771091870707,0.00597291,2080.9,2080.5,1.18399378]
[1771091871008,1.89700842,2081.0,2080.5,1.18399378]
[1771091871805,1.90100051,2081.0,2080.5,1.18868041]
[1771091872807,0.00399209,2081.0,2080.5,1.18868041]
[1771091873405,1.90100051,2081.0,2080.5,1.18868041]
[1771091875103,0.00399209,2081.0,2080.7,1.23247494]
[1771091875302,1.90100051,2081.0,2080.6,1.50144453]
[1771091875503,1.90100051,2081.0,2080.6,1.00184453]
[1771091876197,1.90100051,2081.0,2080.6,1.24226453]
[1771091884416,0.00399209,2081.0,2080.6,1.24226453]
[1771091884614,1.90100051,2081.0,2080.6,1.24226453]
[1771091895730,2.06353495,2081.2,2080.6,0.24042]
[1771091896718,2.06834295,2081.2,2080.6,0.24042]
[1771091906620,1.25795774,2081.1,2080.3,10.0378738]
[1771091906820,2.06353495,2081.0,2080.1,11.41838102]
[1771091907723,2.06353495,2081.0,2080.1,11.42365939]
[1771091908620,2.06353495,2080.8,2080.1,0.24574837]
[1771091910121,2.06353495,2080.6,2079.7,16.43799701]
[1771091911421,2.06353495,2080.6,2079.7,6.40012321]
[1771091911923,2.06353495,2080.6,2079.7,3.989]
[1771091912221,2.06353495,2080.6,2079.6,10.2784038]
[1771091912425,2.06353495,2080.6,2079.6,0.24053]
[1771091913026,2.06353495,2080.6,2079.6,1.39922586]
[1771091913522,2.06353495,2080.6,2079.7,1.25795774]
[1771091914922,2.06353495,2080.6,2078.4,24.0412093]
[1771091914923,2.06353495,2079.6,2078.7,2.25087502]
[1771091915127,2.06808817,2079.6,2078.9,1.25795774]
[1771091915325,2.06808817,2079.6,2078.9,3.32092501]
[1771091916022,2.06808817,2079.6,2079.1,1.25795774]
[1771091916218,2.06353495,2079.6,2079.2,2.06296727]
[1771091916820,2.06353495,2079.6,2079.0,2.06296727]
[1771091917217,2.06800164,2079.6,2079.0,2.06725921]
[1771091918927,2.06800164,2079.6,2079.0,0.00429194]
[1771091920535,2.06800164,2079.6,2079.0,2.06725921]
[1771091920933,2.06800164,2079.6,2079.1,1.25795774]
[1771091921335,2.06800164,2079.6,2079.2,1.97337329]
[1771091922236,2.06800164,2079.6,2079.0,0.00429194]
[1771091926540,2.06800164,2079.6,2078.9,0.24061]
[1771091930547,2.06800164,2079.6,2078.7,2.12665272]
[1771091931146,2.06800164,2079.6,2078.9,0.24061]
[1771091931644,2.06800164,2079.6,2078.7,2.12665272]
[1771091932847,2.08469622,2079.4,2078.4,3.62528046]
[1771091933050,2.08469622,2079.4,2078.5,2.12665272]
[1771091934049,2.08469622,2079.4,2078.6,1.25795774]
[1771091934248,2.08469622,2079.4,2078.7,2.12665272]
[1771091934748,2.08469622,2079.4,2078.6,2.12665272]
[1771091935047,2.08469622,2079.4,2078.5,2.12665272]
[1771091938942,2.08469622,2079.4,2078.8,1.25795774]
[1771091939141,2.08469622,2079.4,2078.9,2.12665272]
[1771091940249,0.00446669,2079.6,2079.1,2.12665272]
[1771091940645,2.08916291,2079.6,2079.1,1.62665272]
[1771091944464,2.08916291,2079.6,2078.7,2.12665272]
[1771091945467,2.08916291,2079.6,2078.9,2.12665272]
[1771091947363,0.00446669,2079.6,2079.1,2.12665272]
[1771091947860,2.08469622,2079.7,2079.1,2.12665272]
[1771091947861,2.08469622,2079.9,2079.3,2.12665272]
[1771091948666,2.0899118,2079.9,2079.3,2.12665272]
[1771091950166,2.0899118,2079.9,2079.2,2.12665272]
[1771091952471,3.34786954,2079.9,2079.1,0.00472795]
[1771091952765,2.08469622,2079.6,2079.1,0.00472795]
[1771091954372,2.08469622,2079.6,2079.1,1.97230206]
[1771091955568,2.10829348,2079.8,2079.1,1.97230206]
[1771091966577,0.00521558,2079.9,2079.3,1.96757411]
[1771091966778,2.11350906,2079.9,2079.3,1.96757411]
[1771091968080,0.00521558,2079.9,2079.3,1.96757411]
[1771091975088,0.00521558,2079.9,2079.4,0.24056]
[1771091975386,0.00521558,2079.9,2079.5,1.96757411]
[1771091975892,0.00521558,2079.9,2079.5,1.54097411]
[1771091977790,2.10829348,2080.3,2079.5,1.54097411]
[1771091978895,0.0058201,2080.3,2079.7,1.96757411]
[1771091980490,2.11411358,2080.3,2079.7,1.96757411]
[1771091989896,0.0058201,2080.3,2079.9,2.16574241]
[1771091990096,0.0050084,2080.3,2079.9,2.16574241]
[1771091990297,0.0050084,2080.3,2079.9,1.87264241]
[1771091992501,2.16352048,2080.3,2079.9,1.87264241]
[1771092000606,2.16352048,2080.3,2079.9,1.37264241]
[1771092001303,2.16352048,2080.3,2079.8,0.24051]
[1771092001509,2.16352048,2080.3,2079.5,2.16574241]
[1771092002210,2.16352048,2080.3,2079.8,0.24051]
[1771092003410,2.16352048,2080.3,2079.7,2.16574241]
[1771092003611,2.16352048,2080.3,2079.5,2.16574241]
[1771092006113,2.16352048,2080.3,2079.4,2.16574241]
[1771092006307,2.16352048,2080.3,2079.3,0.24057]
[1771092006708,2.15851208,2080.0,2079.1,0.00472795]
[1771092007007,1.25976766,2080.1,2078.8,0.24063]
[1771092007008,2.15851208,2079.8,2078.8,2.40637241]
[1771092007912,2.15851208,2079.8,2078.8,2.41006243]
[1771092026834,2.15851208,2079.8,2078.9,2.00637643]
[1771092040153,1.25986853,2079.7,2078.9,2.00637643]
[1771092040449,2.11624416,2079.6,2078.9,2.00637643]
[1771092052660,2.11624416,2079.6,2078.8,0.24432002]
[1771092052856,2.11624416,2079.6,2078.8,2.44516522]
[1771092055663,2.11624416,2079.6,2078.8,2.20453522]
[1771092058467,1.25986853,2079.5,2078.8,2.20453522]
[1771092058662,2.06325577,2079.4,2078.8,2.20453522]
[1771092060776,2.06325577,2079.4,2078.8,0.00369002]
[1771092061066,8.2225934,2079.9,2078.8,0.00369002]
[1771092061067,2.06325577,2079.2,2078.8,0.00369002]
[1771092061466,2.06325577,2079.2,2078.4,2.2008452]
[1771092062366,2.06325577,2079.2,2078.4,2.20318248]
[1771092068569,2.06325577,2079.2,2078.4,3.46305101]
[1771092068869,2.06325577,2079.2,2078.5,2.2008452]
[1771092071570,2.06325577,2079.6,2078.8,1.25986853]
[1771092071776,2.06325577,2079.6,2078.9,2.2008452]
[1771092071975,2.06325577,2079.6,2079.1,2.2008452]
[1771092072373,2.06325577,2079.6,2079.1,1.7008452]
[1771092074977,2.20402681,2079.9,2079.2,1.25986853]
[1771092075178,6.19402681,2079.9,2079.3,2.20985088]
[1771092075368,2.20402681,2079.8,2079.3,1.71085088]
[1771092084694,2.20402681,2079.8,2079.2,2.20985088]
[1771092089595,2.20402681,2079.8,2079.0,2.20985088]
[1771092089797,2.20402681,2079.8,2078.8,2.20985088]
[1771092090495,2.20402681,2079.7,2078.6,2.20985088]
[1771092096402,6.19402681,2079.7,2078.6,2.20985088]
[1771092096697,2.20402681,2079.6,2078.6,2.20985088]
[1771092104105,2.2064425,2079.7,2078.7,2.06980095]
[1771092106510,2.2064425,2079.7,2078.9,2.06980095]
[1771092129320,2.2064425,2079.8,2078.9,2.06980095]
[1771092129522,2.2064425,2080.0,2079.1,2.06980095]
[1771092129815,2.2114509,2080.3,2079.5,2.06980095]
[1771092131123,0.0050084,2080.3,2079.5,2.06980095]
[1771092132724,0.0050084,2080.3,2079.7,2.06980095]
[1771092133426,2.04527319,2080.7,2079.7,2.06980095]
[1771092133626,2.04527319,2080.7,2079.9,2.0717743]
[1771092134417,2.04914833,2080.7,2079.9,2.07750988]
[1771092135123,0.00387514,2080.7,2080.1,2.0717743]
[1771092135919,2.04527319,2081.1,2080.3,2.0717743]
[1771092136128,2.04527319,2081.7,2080.5,2.0717743]
[1771092136928,2.05125661,2081.7,2080.5,2.0717743]
[1771092142737,2.05125661,2081.7,2080.7,2.0717743]
[1771092143342,2.04527319,2081.5,2080.1,2.0717743]
[1771092147646,2.04527319,2081.4,2080.1,2.0717743]
[1771092149048,2.04527319,2081.0,2080.1,2.0717743]
[1771092149842,2.04527319,2081.0,2080.2,1.25833367]
[1771092150041,2.04527319,2081.0,2080.3,2.0717743]
[1771092151843,2.04527319,2081.4,2080.4,1.25833367]
[1771092152049,2.04527319,2081.4,2080.5,2.0717743]
[1771092157253,3.30360686,2081.4,2080.5,2.0717743]
[1771092157453,3.99498342,2081.7,2080.5,2.0717743]
[1771092157454,1.25833367,2081.2,2080.5,2.0717743]
[1771092157751,2.04527319,2081.1,2080.5,2.0717743]
[1771092158943,1.25833367,2081.6,2080.5,2.0717743]
[1771092159252,2.04527319,2081.5,2080.7,2.0717743]
[1771092159447,2.04527319,2081.5,2080.9,2.0717743]
[1771092159853,2.04527319,2081.5,2080.9,1.5717743]
[1771092161354,0.00598342,2081.7,2080.9,1.5717743]
[1771092161653,2.14887624,2081.6,2080.9,1.5717743]
[1771092162556,2.14887624,2081.6,2080.8,1.25833367]
[1771092162557,2.14887624,2081.5,2080.8,2.01421586]
[1771092163350,2.14887624,2081.5,2080.9,2.09646766]
[1771092164357,1.95435511,2081.7,2081.1,2.09646766]
[1771092164748,1.95435511,2081.7,2081.3,2.09646766]
[1771092165058,1.95435511,2081.7,2081.3,1.59706766]
[1771092165757,0.00598342,2081.7,2081.3,1.59706766]
[1771092166458,1.94837169,2081.9,2081.4,2.09646766]
[1771092167561,1.95391351,2081.9,2081.4,2.10227809]
[1771092171866,0.00554182,2081.9,2081.4,2.10227809]
[1771092172062,1.95391351,2081.9,2081.4,2.10227809]
[1771092174964,3.989,2082.3,2081.4,2.10227809]
[1771092174965,1.94837169,2082.3,2081.6,2.09646766]
[1771092175956,1.95203623,2082.3,2081.6,2.09646766]
[1771092176663,1.95203623,2082.3,2081.8,2.09646766]
[1771092177064,1.95203623,2082.3,2081.8,1.64886766]
[1771092177765,1.94837169,2082.4,2081.8,1.64886766]
[1771092177969,1.94837169,2083.0,2082.0,2.09646766]
[1771092179066,1.95332192,2083.0,2082.0,2.09646766]
[1771092179267,1.25833367,2082.9,2082.0,2.09646766]
[1771092179465,1.94837169,2082.8,2082.0,2.09646766]
[1771092180161,1.25833367,2082.7,2081.8,2.09646766]
[1771092180365,1.94837169,2082.6,2081.8,2.09646766]
[1771092180765,1.94837169,2082.6,2081.6,2.09646766]
[1771092180961,1.25833367,2082.5,2081.6,2.09646766]
[1771092181166,1.94837169,2082.2,2081.5,0.24031]
[1771092181568,1.94837169,2082.2,2081.5,2.33677766]
[1771092189379,1.94837169,2082.2,2081.6,2.09646766]
[1771092193780,1.94837169,2082.2,2081.5,0.24031]
[1771092194282,1.94837169,2082.2,2081.5,2.30932226]
[1771092198479,1.94837169,2082.2,2081.5,2.06901226]
[1771092199884,1.94837169,2082.2,2081.4,0.00581043]
[1771092200180,1.94837169,2082.2,2081.4,2.07482269]
[1771092206186,2.02577504,2082.4,2081.7,2.06901226]
[1771092206590,2.02577504,2082.4,2081.7,1.74651226]
[1771092206994,0.24017,2082.8,2081.7,1.74651226]
[1771092206995,2.02577504,2082.6,2081.7,1.74651226]
[1771092207188,1.25833367,2082.9,2082.2,1.25833367]
[1771092207189,2.02577504,2082.9,2082.2,1.25833367]
[1771092207396,2.02577504,2082.9,2082.1,2.06901226]
[1771092212798,2.02577504,2082.9,2081.9,2.06901226]
[1771092217500,2.02577504,2082.9,2081.5,2.06901226]
[1771092217696,5.91997683,2082.8,2081.5,2.06901226]
[1771092217897,2.02577504,2082.7,2081.5,2.06901226]
[1771092220798,2.02577504,2082.5,2081.6,2.06901226]
[1771092221902,2.05902805,2082.7,2081.8,1.9615915]
[1771092226704,1.98290255,2083.0,2082.2,2.07755072]
[1771092226899,1.98290255,2083.0,2081.9,2.07755072]
[1771092230214,1.97795232,2082.8,2081.8,2.31783072]
[1771092236218,1.97795232,2082.9,2081.8,2.31783072]
[1771092237724,1.97795232,2082.9,2082.1,2.07755072]
[1771092238612,1.97795232,2082.9,2082.3,2.07755072]
[1771092238919,1.97795232,2082.9,2082.3,1.57755072]
[1771092239116,1.98290255,2083.0,2082.3,1.57755072]
[1771092241718,1.98290255,2083.0,2082.5,2.07755072]
[1771092241919,0.00495023,2083.0,2082.5,2.07755072]
[1771092242119,1.98290255,2083.0,2082.5,2.07755072]
[1771092242820,0.00495023,2083.0,2082.5,2.07755072]
[1771092243319,2.3e-07,2083.0,2082.7,2.07755072]
[1771092244418,1.97795255,2083.0,2082.6,2.31774072]
[1771092244624,2.3e-07,2083.0,2082.6,2.31774072]
[1771092245022,1.97795232,2083.6,2082.6,2.31774072]
[1771092245925,1.98225813,2083.6,2082.6,2.31774072]
[1771092255028,0.00430581,2083.6,2082.9,2.05092766]
[1771092255229,2.00002785,2084.0,2082.9,2.05474026]
[1771092256225,2.00376206,2084.0,2083.1,2.05092766]
[1771092257719,2.00376206,2084.0,2083.3,2.05092766]
[1771092263133,2.00376206,2084.0,2083.2,2.05092766]
[1771092266736,2.00376206,2084.0,2083.0,2.05092766]
[1771092267636,2.00376206,2084.0,2083.1,0.24013]
[1771092267837,2.00376206,2084.0,2083.2,2.05092766]
[1771092271435,2.00376206,2084.0,2082.9,0.0038126]
[1771092271639,4.01288899,2084.3,2083.5,2.05092766]
[1771092271935,2.00002785,2084.3,2083.5,2.05092766]
[1771092272836,2.00432042,2084.3,2083.5,2.05092766]
[1771092274342,2.00432042,2084.3,2083.4,0.24009]
[1771092275242,2.00432042,2084.3,2083.3,2.05092766]
[1771092283543,2.00432042,2084.3,2083.0,2.11556215]
[1771092283740,2.1320184,2084.1,2082.9,2.11937475]
[1771092284040,2.1320184,2084.1,2082.9,0.0038126]
[1771092284346,2.1320184,2084.1,2082.9,2.11937475]
[1771092286848,1.25502677,2083.9,2082.9,2.11937475]
[1771092287050,2.1320184,2083.8,2082.9,2.11937475]
[1771092289951,1.25502677,2083.7,2082.9,2.11937475]
[1771092290349,2.1320184,2083.6,2082.9,2.11937475]
[1771092290845,2.1320184,2083.4,2082.9,0.0038126]
[1771092291152,2.1320184,2083.4,2082.5,2.11556215]
[1771092291751,1.25502677,2083.3,2082.4,2.11556215]
[1771092292052,2.1320184,2083.2,2082.4,2.12136852]
[1771092300358,2.1320184,2083.2,2082.4,0.00580637]
[1771092301555,2.1320184,2083.4,2082.5,2.11556215]
[1771092303158,2.1320184,2083.4,2082.4,2.12136852]
[1771092303359,2.1320184,2083.4,2082.4,0.00580637]
[1771092303759,2.1320184,2083.4,2082.0,2.11556215]
[1771092303760,2.3721184,2083.4,2082.0,2.11556215]
[1771092304861,2.3721184,2083.4,2082.0,2.12152675]
[1771092314177,2.12936558,2083.2,2082.0,2.12152675]
[1771092314470,2.12936558,2083.1,2082.0,2.12152675]
[1771092315577,2.12936558,2083.1,2082.0,0.0059646]
[1771092316672,2.12936558,2082.9,2082.0,0.0059646]
[1771092316870,2.12936558,2082.6,2082.0,0.0059646]
[1771092317075,2.13421046,2082.6,2082.0,0.0059646]
[1771092317370,1.25656957,2082.3,2081.3,2.33527163]
[1771092317572,2.12936558,2082.2,2081.3,2.33527163]
[1771092318483,2.12936558,2082.2,2081.3,2.33918625]
[1771092337889,2.12936558,2082.5,2081.3,2.33918625]
[1771092339696,2.13421046,2082.6,2081.3,2.33918625]
[1771092340694,2.13421046,2082.6,2081.9,2.09493163]
[1771092341989,4.01288899,2083.3,2082.1,2.03368915]
[1771092342193,2.01875393,2083.2,2082.1,2.03368915]
[1771092342597,2.01875393,2083.2,2082.3,2.03368915]
[1771092342894,2.01875393,2083.2,2082.3,1.53368915]
[1771092343093,2.02252034,2083.2,2082.3,1.53368915]
[1771092350199,2.02252034,2083.2,2082.2,0.24023]
[1771092350400,2.02252034,2083.2,2081.8,1.97948491]
[1771092351701,2.00237929,2083.0,2081.7,1.97948491]
[1771092354205,2.00237929,2083.0,2081.9,1.97948491]
[1771092354401,2.00237929,2083.0,2082.1,1.97948491]
[1771092357609,2.00237929,2083.0,2082.2,0.24023]
[1771092357809,2.0061457,2083.2,2082.3,1.97948491]
[1771092358505,2.0061457,2083.2,2082.5,1.97948491]
[1771092358506,0.00376641,2083.2,2082.5,1.97948491]
[1771092359003,2.0061457,2083.2,2082.5,1.97948491]
[1771092363715,2.0061457,2083.2,2082.1,1.97948491]